fUSD/lending_fUSD_20250417
["ID","MTS","AMOUNT","RATE_DAILY","PERIOD"]
[358263483,1744879838148,-500.0,0.00054794,120]
[358263484,1744879838157,-500.0,0.00054794,120]
[358263485,1744879838167,-500.0,0.00054794,120]
[358263486,1744879838176,-500.0,0.00054794,120]
[358263488,1744879838186,-500.0,0.00054794,120]
[358263490,1744879838195,-500.0,0.00054794,120]
[358263492,1744879838204,-500.0,0.00054794,120]
[358263494,1744879838213,-500.0,0.00054794,120]
[358263496,1744879838223,-635.32,0.00054794,120]
[358263498,1744879838233,-6218.71,0.00054794,7]
[358263501,1744879838243,-302.73317113,0.00054794,120]
[358263504,1744879838252,-500.0,0.00054794,2]
[358263508,1744879838262,-170.72460637,0.00054794,120]
[358263511,1744879838271,-523.5529026,0.00054794,120]
[358263513,1744879838281,-502.72435151,0.00054794,120]
[358263515,1744879838295,-600.09587218,0.00054794,120]
[358263517,1744879838304,-510.08375047,0.00054794,120]
[358263519,1744879838313,-500.0,0.00054794,120]
[358263521,1744879838324,-500.0,0.00054794,120]
[358263523,1744879838334,-1000.0,0.00054794,120]
[358263525,1744879838343,-500.0,0.00054794,120]
[358263527,1744879838352,-520.88799238,0.00054794,120]
[358263529,1744879838362,-500.0,0.00054794,120]
[358263531,1744879838371,-500.0,0.00054794,60]
[358263533,1744879838381,-500.0,0.00054794,120]
[358263535,1744879838390,-502.42601519,0.00054794,120]
[358263537,1744879838398,-539.17172376,0.00054794,120]
[358263539,1744879838408,-506.48354459,0.00054794,120]
[358263541,1744879838417,-526.90123182,0.00054794,120]
[358263543,1744879838426,-520.77910583,0.00054794,120]
[358263545,1744879838435,-500.0,0.00054794,120]
[358263547,1744879838445,-378.47913437,0.00054794,120]
[358263549,1744879838454,-507.77511831,0.00054794,120]
[358263551,1744879838463,-503.56950339,0.00054794,120]
[358263553,1744879838472,-502.02119186,0.00054794,120]
[358263555,1744879838481,-500.0,0.00054794,120]
[358263557,1744879838490,-228.30750356,0.00054794,120]
[358263559,1744879838499,-500.0,0.00054794,120]
[358263561,1744879838510,-500.0,0.00054794,120]
[358263563,1744879838519,-500.0,0.00054794,120]
[358263565,1744879838528,-500.0,0.00054794,120]
[358263567,1744879838537,-500.0,0.00054794,120]
[358263569,1744879838546,-500.0,0.00054794,120]
[358263571,1744879838555,-504.07517023,0.00054794,120]
[358263572,1744879838565,-294.3547913,0.00054794,120]
[358263575,1744879838575,-498.81038,0.00054794,120]
[358263576,1744879838585,-500.0,0.00054794,120]
[358263578,1744879838595,-500.0,0.00054794,120]
[358263580,1744879838604,-500.0,0.00054794,120]
[358263582,1744879838613,-500.0,0.00054794,120]
[358263585,1744879838623,-500.0,0.00054794,120]
[358263587,1744879838632,-500.0,0.00054794,120]
[358263588,1744879838641,-500.0,0.00054794,120]
[358263590,1744879838650,-500.0,0.00054794,120]
[358263592,1744879838660,-500.0,0.00054794,120]
[358263594,1744879838668,-500.0,0.00054794,120]
[358263596,1744879838677,-500.0,0.00054794,120]
[358263598,1744879838686,-500.0,0.00054794,120]
[358263600,1744879838695,-500.0,0.00054794,120]
[358263602,1744879838705,-500.0,0.00054794,120]
[358263604,1744879838714,-501.10724186,0.00054794,120]
[358263606,1744879838724,-506.69869191,0.00054794,120]
[358263609,1744879838733,-500.0,0.00054794,120]
[358263610,1744879838742,-500.0,0.00054794,120]
[358263612,1744879838751,-500.0,0.00054794,120]
[358263614,1744879838760,-500.0,0.00054794,120]
[358263617,1744879838770,-500.0,0.00054794,120]
[358263618,1744879838779,-500.0,0.00054794,120]
[358263620,1744879838788,-506.16192787,0.00054794,120]
[358263622,1744879838797,-500.0,0.00054794,120]
[358263624,1744879838806,-500.0,0.00054794,120]
[358263626,1744879838816,-500.0,0.00054794,120]
[358263628,1744879838826,-639.5188297,0.00054794,120]
[358263630,1744879838836,-500.0,0.00054794,120]
[358263632,1744879838846,-500.0,0.00054794,120]
[358263634,1744879838855,-500.0,0.00054794,120]
[358263636,1744879838867,-500.0,0.00054794,120]
[358263638,1744879838876,-500.0,0.00054794,120]
[358263640,1744879838886,-500.0,0.00054794,120]
[358263642,1744879838894,-500.0,0.00054794,120]
[358263644,1744879838903,-150.0,0.00054794,60]
[358263646,1744879838912,-65.09796118,0.00054794,60]
[358263651,1744879838948,-84.90203882,0.00054794,60]
[358263653,1744879838958,-200.0,0.00054794,60]
[358263656,1744879838975,-150.0,0.00054794,60]
[358263658,1744879838986,-150.0,0.00054794,60]
[358263660,1744879838995,-200.0,0.00054794,60]
[358263663,1744879839010,-93.88546118,0.00054794,60]
[358263665,1744879839025,-56.11453882,0.00054794,60]
[358263667,1744879839036,-150.0,0.00054794,60]
[358263670,1744879839049,-150.0,0.00054794,60]
[358263672,1744879839062,-150.0,0.00054794,60]
[358263674,1744879839073,-150.0,0.00054794,60]
[358263676,1744879839085,-250.0,0.00054794,60]
[358263679,1744879839096,-150.0,0.00054794,60]
[358263681,1744879839107,-150.0,0.00054794,60]
[358263683,1744879839118,-150.0,0.00054794,60]
[358263685,1744879839129,-150.0,0.00054794,60]
[358263687,1744879839138,-150.0,0.00054794,60]
[358263689,1744879839149,-200.0,0.00054794,60]
[358263691,1744879839159,-150.0,0.00054794,60]
[358263693,1744879839169,-150.0,0.00054794,60]
[358263695,1744879839180,-150.0,0.00054794,60]
[358263698,1744879839191,-150.0,0.00054794,60]
[358263700,1744879839202,-200.0,0.00054794,60]
[358263702,1744879839212,-150.0,0.00054794,60]
[358263704,1744879839223,-150.0,0.00054794,60]
[358263706,1744879839233,-200.0,0.00054794,60]
[358263708,1744879839243,-150.0,0.00054794,60]
[358263710,1744879839254,-415.39428967,0.0005485,120]
[358263713,1744879839266,-584.60571033,0.0005485,120]
[358263715,1744879839278,-200.53,0.00055055,120]
[358263717,1744879839290,-15.66428965,0.00055205,120]
[358263720,1744879839307,-152.91334335,0.00055205,120]
[358263722,1744879839319,-1000.0,0.00055348,2]
[358263724,1744879839331,-2634.59,0.0005536,2]
[358263726,1744879839343,-194.81,0.00055368,30]
[358263729,1744879839354,-150.0,0.00055416,2]
[358263731,1744879839368,-408.24,0.00055448,2]
[358263733,1744879839379,-125.94665671,0.00055483,21]
[358263735,1744879839392,-325.37509763,0.00055483,21]
[358263784,1744879839856,-2041.52819918,0.00055483,21]
[358263786,1744879839868,-3307.15004648,0.00055483,21]
[358263788,1744879839879,-2565.74,0.00055612,2]
[358263791,1744879839890,-153.65,0.00055655,2]
[358263793,1744879839900,-1837.13,0.00055691,120]
[358263795,1744879839911,-168.577633,0.0005589,120]
[358263797,1744879839921,-250.0,0.00056145,120]
[358263799,1744879839931,-154.74,0.00056435,2]
[358263801,1744879839941,-154.74,0.00058965,2]
[358263803,1744879839951,-153.55,0.000593,60]
[358263805,1744879839960,-153.55,0.000593,60]
[358263807,1744879839970,-213.76605064,0.00059999,7]
[358263810,1744879839981,-597.8985946,0.00059999,7]
[358263812,1744879839990,-500.0,0.00059999,120]
[358263814,1744879840001,-500.0,0.00059999,120]
[358263816,1744879840012,-280.49400063,0.00059999,120]
[358263818,1744879840022,-337.83320967,0.00059999,120]
[358263820,1744879840036,-500.0,0.00059999,120]
[358263823,1744879840046,-500.0,0.00059999,120]
[358263825,1744879840058,-500.0,0.00059999,120]
[358263827,1744879840068,-500.0,0.00059999,120]
[358263829,1744879840080,-500.0,0.00059999,120]
[358263831,1744879840090,-500.0,0.00059999,120]
[358263833,1744879840101,-23171.18046498,0.0006,120]
[358264023,1744879842141,-4000.0,0.0006,120]
[358264025,1744879842152,-4940.28605047,0.0006,120]
[358264027,1744879842163,-533.71400346,0.0006,120]
[358264030,1744879842176,-500.0,0.0006,120]
[358264041,1744879842287,-95.5024923,0.00051406,2]
[358264044,1744879842300,-54.4975077,0.00051406,2]
[358264046,1744879842310,-1843.5394866,0.0006,120]
[358264048,1744879842323,-429.18450984,0.0006,120]
[358264196,1744879843704,-7579.59781009,0.0006,120]
[358264198,1744879843716,-1986.82732598,0.0006,120]
[358264201,1744879843737,-26.82516412,0.0006,120]
[358264203,1744879843749,-1120.60021825,0.0006,120]
[358264207,1744879843771,-150.0,0.00053475,7]
[358264208,1744879843780,-144750.10496621,0.0006,120]
[358264210,1744879843790,-855.85197576,0.00060844,32]
[358264213,1744879843799,-1000.0,0.00060944,120]
[358264214,1744879843810,-154.74,0.00061495,2]
[358264216,1744879843819,-173.34,0.00061651,2]
[358264218,1744879843829,-169.17,0.00062283,120]
[358264220,1744879843839,-154.74,0.00064025,2]
[358264222,1744879843848,-818.81,0.00065743,30]
[358264225,1744879843858,-500.0,0.00065753,120]
[358264227,1744879843868,-500.0,0.00065753,8]
[358264229,1744879843877,-500.0,0.00065753,120]
[358264230,1744879843889,-500.0,0.00065753,120]
[358264232,1744879843898,-500.0,0.00065753,120]
[358264234,1744879843907,-500.0,0.00065753,120]
[358264236,1744879843917,-500.0,0.00065753,120]
[358264238,1744879843926,-6218.71,0.00065753,7]
[358264240,1744879843935,-500.0,0.00065753,2]
[358264242,1744879843944,-532.81049732,0.00065753,120]
[358264244,1744879843955,-500.0,0.00065753,120]
[358264246,1744879843964,-1000.0,0.00065753,120]
[358264248,1744879843973,-500.0,0.00065753,120]
[358264249,1744879843982,-517.18638036,0.00065753,60]
[358264250,1744879843991,-500.0,0.00065753,120]
[358264251,1744879844000,-500.0,0.00065753,120]
[358264252,1744879844009,-500.0,0.00065753,120]
[358264253,1744879844019,-500.0,0.00065753,120]
[358264255,1744879844029,-500.0,0.00065753,120]
[358264257,1744879844038,-500.0,0.00065753,120]
[358264259,1744879844047,-508.75196503,0.00065753,120]
[358264261,1744879844056,-500.0,0.00065753,120]
[358264263,1744879844066,-500.0,0.00065753,120]
[358264265,1744879844075,-500.0,0.00065753,120]
[358264267,1744879844085,-500.0,0.00065753,120]
[358264269,1744879844095,-509.51922137,0.00065753,120]
[358264271,1744879844105,-500.0,0.00065753,120]
[358264273,1744879844114,-500.0,0.00065753,120]
[358264275,1744879844125,-500.0,0.00065753,120]
[358264277,1744879844135,-500.0,0.00065753,120]
[358264279,1744879844144,-425.04116469,0.00065753,120]
[358264281,1744879844154,-527.38980808,0.00065753,120]
[358264283,1744879844163,-500.0,0.00065753,120]
[358264285,1744879844173,-500.0,0.00065753,120]
[358264287,1744879844182,-500.0,0.00065753,120]
[358264289,1744879844192,-500.0,0.00065753,120]
[358264291,1744879844201,-500.0,0.00065753,120]
[358264293,1744879844210,-154.74,0.00066555,2]
[358264295,1744879844220,-1000.0,0.00067038,120]
[358264297,1744879844229,-153.55,0.000679,69]
[358264299,1744879844239,-154.74,0.00069086,2]
[358264301,1744879844248,-154.74,0.00071616,2]
[358264303,1744879844257,-365.63,0.00072824,30]
[358264305,1744879844267,-1000.0,0.00073133,120]
[358264307,1744879844277,-154.74,0.00074146,2]
[358264309,1744879844288,-154.74,0.00076676,2]
[358264311,1744879844298,-500.0,0.00076712,120]
[358264314,1744879844308,-271.18,0.00076712,8]
[358264316,1744879844318,-500.0,0.00076712,120]
[358264318,1744879844329,-219.00640321,0.00076712,120]
[358264320,1744879844339,-500.0,0.00076712,120]
[358264322,1744879844348,-6218.71,0.00076712,7]
[358264324,1744879844358,-500.0,0.00076712,120]
[358264326,1744879844371,-500.0,0.00076712,120]
[358264328,1744879844380,-193.35,0.00076712,120]
[358264330,1744879844390,-500.0,0.00076712,120]
[358264332,1744879844399,-500.0,0.00076712,120]
[358264334,1744879844409,-519.79,0.00076712,120]
[358264335,1744879844418,-500.0,0.00076712,120]
[358264337,1744879844427,-500.0,0.00076712,120]
[358264340,1744879844436,-500.0,0.00076712,120]
[358264342,1744879844446,-500.0,0.000773,120]
[358264343,1744879844455,-154.74,0.00079207,2]
[358264346,1744879844465,-428.33,0.00079896,120]
[358264348,1744879844474,-150.0,0.00080927,120]
[358264350,1744879844485,-169.17,0.00080959,120]
[358264351,1744879844494,-154.74,0.00081737,2]
[358264353,1744879844503,-150.0,0.00082297,120]
[358264355,1744879844512,-154.74,0.00084267,2]
[358264357,1744879844521,-500.0,0.00085274,15]
[358264359,1744879844530,-500.0,0.00085274,2]
[358264361,1744879844539,-154.74,0.00086797,2]
[358264363,1744879844548,-6725.9437,0.00087571,120]
[358264365,1744879844564,-173.9008924,0.00087571,28]
[358264367,1744879844573,-365.84,0.00087671,120]
[358264369,1744879844585,-1000.0,0.00087671,35]
[358264372,1744879844595,-1000.0,0.00087671,35]
[358264373,1744879844604,-1000.0,0.00087671,35]
[358264375,1744879844614,-1000.0,0.00087671,35]
[358264377,1744879844623,-500.0,0.00087671,120]
[358264379,1744879844632,-6218.71,0.00087671,7]
[358264381,1744879844641,-500.0,0.00087671,120]
[358264383,1744879844650,-500.0,0.00087671,120]
[358264385,1744879844660,-501.56861975,0.00087671,120]
[358264388,1744879844669,-500.0,0.00087671,120]
[358264390,1744879844679,-154.74,0.00089327,2]
[358264392,1744879844688,-502.18783502,0.00090753,2]
[358264394,1744879844697,-154.74,0.00091858,2]
[358264396,1744879844706,-154.74,0.00094388,2]
[358264397,1744879844715,-500.0,0.0009863,120]
[358264399,1744879844725,-6218.71,0.0009863,7]
[358264401,1744879844734,-500.0,0.0009863,120]
[358264403,1744879844743,-500.0,0.0009863,120]
[358264405,1744879844752,-500.0,0.0009863,120]
[358264407,1744879844761,-169.17,0.00099635,120]
[358264409,1744879844771,-365.63,0.00101954,30]
[358264411,1744879844780,-500.0,0.00109589,120]
[358264413,1744879844790,-6218.71,0.00109589,7]
[358264415,1744879844799,-627.37,0.00109589,120]
[358264417,1744879844807,-500.0,0.00109589,120]
[358264419,1744879844817,-636.41,0.00109589,120]
[358264421,1744879844826,-573.5,0.00113709,120]
[358264423,1744879844836,-169.17,0.00118311,120]
[358264425,1744879844845,-214.69,0.00120532,120]
[358264427,1744879844854,-1000.58,0.00120536,120]
[358264429,1744879844864,-6945.32976967,0.00120537,12]
[358264431,1744879844874,-500.0,0.00120547,120]
[358264433,1744879844883,-6218.71,0.00120547,7]
[358264435,1744879844892,-500.0,0.00120547,120]
[358264437,1744879844901,-500.0,0.00131506,120]
[358264439,1744879844909,-6218.71,0.00131506,7]
[358264441,1744879844919,-500.0,0.00131506,120]
[358264443,1744879844928,-169.17,0.00136986,120]
[358264445,1744879844937,-6824.49733695,0.00139586,28]
[358264468,1744879845139,-120.83243272,0.00139586,28]
[358264470,1744879845148,-1281.40695227,0.00139596,15]
[358264481,1744879845248,-428.33,0.00139696,120]
[358264482,1744879845258,-347.56166546,0.00139716,29]
[358264555,1744879845848,-13543.09787384,0.00139716,29]
[358264557,1744879845858,-151.0,0.00139726,120]
[358264559,1744879845868,-151.0,0.00139726,120]
[358264561,1744879845878,-151.0,0.00139726,120]
[358264563,1744879845888,-152.938837,0.00139726,120]
[358264565,1744879845897,-151.0,0.00139726,120]
[358264567,1744879845906,-151.0,0.00139726,120]
[358264569,1744879845915,-151.0,0.00139726,120]
[358264571,1744879845924,-151.0,0.00139726,120]
[358264573,1744879845933,-151.0,0.00139726,120]
[358264575,1744879845943,-208.14583,0.00139726,120]
[358264577,1744879845952,-151.0,0.00139726,120]
[358264579,1744879845961,-151.0,0.00139726,120]
[358264581,1744879845971,-151.0,0.00139726,120]
[358264583,1744879845980,-151.0,0.00139726,120]
[358264585,1744879845990,-151.0,0.00139726,120]
[358264587,1744879845999,-151.0,0.00139726,120]
[358264589,1744879846008,-258.159618,0.00139726,120]
[358264591,1744879846017,-151.0,0.00139726,120]
[358264593,1744879846027,-151.0,0.00139726,120]
[358264595,1744879846036,-151.0,0.00139726,120]
[358264597,1744879846045,-151.0,0.00139726,120]
[358264599,1744879846055,-205.321909,0.00139726,120]
[358264602,1744879846065,-80.29159158,0.00139726,120]
[358264604,1744879846083,-70.70840842,0.00139726,120]
[358264606,1744879846093,-151.0,0.00139726,120]
[358264608,1744879846103,-151.0,0.00139726,120]
[358264610,1744879846113,-151.0,0.00139726,120]
[358264612,1744879846123,-151.0,0.00139726,120]
[358264614,1744879846133,-736.875371,0.00139726,120]
[358264616,1744879846142,-736.875371,0.00139726,120]
[358264618,1744879846153,-736.875371,0.00139726,120]
[358264620,1744879846163,-736.875371,0.00139726,120]
[358264622,1744879846173,-736.875371,0.00139726,120]
[358264624,1744879846183,-736.875371,0.00139726,120]
[358264626,1744879846192,-736.875371,0.00139726,120]
[358264628,1744879846202,-736.875371,0.00139726,120]
[358264630,1744879846211,-736.875371,0.00139726,120]
[358264632,1744879846221,-736.875371,0.00139726,120]
[358264634,1744879846231,-736.875371,0.00139726,120]
[358264636,1744879846240,-288.11117408,0.00139726,120]
[358264639,1744879846256,-448.76419692,0.00139726,120]
[358264641,1744879846265,-45.65632308,0.00139726,120]
[358264709,1744879918822,250.0,0.00017,2]
[358264710,1744879919932,300.0,0.00019,2]
[358264711,1744879921028,302.77865753,0.00021,2]
[358264712,1744879924606,-47.22134247,0.00021,2]
[358264713,1744879924630,-142.95575753,0.00023,2]
[358264714,1744879931016,-190.1771,0.00023,2]
[358264715,1744880181916,-66.86714247,0.00023,2]
[358264716,1744880181939,-123.30996753,0.00025,2]
[358264717,1744880244622,-326.69003247,0.00025,2]
[358264718,1744880244647,-23.79850041,0.000253,2]
[358264719,1744880799521,398.24854402,0.00017844,2]
[358264720,1744880830154,-226.20149959,0.000253,2]
[358264721,1744880830174,-226.00333203,0.00026745,2]
[358264722,1744880830193,-2214.39176404,0.00026745,2]
[358264723,1744880973090,-1469.21758125,0.00026745,2]
[358264727,1744881031858,-1373.97296487,0.00026745,2]
[358264728,1744881031868,-500.0,0.00027,2]
[358264729,1744881031877,-250.0,0.0002783,2]
[358264730,1744881031887,-498.46,0.00028,2]
[358264731,1744881031896,-550.0,0.00029,2]
[358264732,1744881031905,-600.0,0.00031,2]
[358264733,1744881031916,-500.0,0.00032,7]
[358264734,1744881031925,-273.02002264,0.00033,2]
[358264735,1744881031937,-376.97997736,0.00033,2]
[358264736,1744881031946,-250.0,0.00033819,2]
[358264737,1744881031955,-190.177043,0.00034824,2]
[358264738,1744881031965,-700.0,0.00035,2]
[358264739,1744881031974,-151.0,0.00038432,2]
[358264740,1744881031987,-151.0,0.00038432,2]
[358264741,1744881031996,-151.0,0.00040332,2]
[358264742,1744881032006,-150.0,0.00041,14]
[358264743,1744881032015,-508.2285,0.00043,120]
[358264744,1744881032168,-350.0,0.00048499,5]
[358264745,1744881032178,-3020.92108392,0.000485,120]
[358264746,1744881032190,-2309.07891608,0.000485,120]
[358264747,1744881032200,-500.0,0.00063899,120]
[358264748,1744881032210,-500.0,0.00064284,120]
[358264749,1744881032219,-1900.77149633,0.00065,100]
[358264750,1744881032230,-1599.22750367,0.00065,100]
[358264751,1744881032240,-158.79,0.000679,69]
[358264753,1744881032249,-158.79,0.000679,69]
[358264755,1744881032259,-158.79,0.000679,69]
[358264756,1744881032269,-158.79,0.000679,69]
[358264757,1744881032279,-191.0,0.00068,120]
[358264758,1744881032288,-346.31749633,0.00077379,120]
[358264759,1744881032300,-153.68250367,0.00077379,120]
[358264760,1744881032310,-5000.0,0.00078,120]
[358264761,1744881032321,-541.0623648,0.0008778,120]
[358264762,1744881032331,-254.0,0.0008778,20]
[358264763,1744881032340,-500.0,0.00089408,120]
[358264764,1744881032350,-500.0,0.00090447,120]
[358264765,1744881032360,-224.74,0.00093106,120]
[358264766,1744881032371,-326.666,0.00093538,120]
[358264767,1744881032382,-500.0,0.0009719,120]
[358264768,1744881032392,-326.667,0.00097654,120]
[358264769,1744881032401,-500.0,0.00099538,120]
[358264770,1744881032412,-326.666,0.00101769,120]
[358264771,1744881032421,-500.0,0.00104779,120]
[358264772,1744881032431,-326.667,0.00105885,120]
[358264773,1744881032439,-193.80738628,0.0010812,120]
[358264774,1744881032451,-306.19261372,0.0010812,120]
[358264775,1744881032460,-500.0,0.00108194,120]
[358264776,1744881032469,-37.84871108,0.00108544,120]
[358264778,1744881032480,-288.0,0.00108544,120]
[358264779,1744881032491,-174.15128892,0.00108544,120]
[358264780,1744881032500,-326.667,0.0011,120]
[358264782,1744881032509,-500.0,0.00113381,120]
[358264784,1744881032518,-500.0,0.00113766,120]
[358264786,1744881032527,-91.9387191,0.00126493,2]
[358264788,1744881032538,-410.0612809,0.00126493,2]
[358264790,1744881032546,-209.97000099,0.00132,120]
[358264791,1744881032557,-455.39871811,0.00135637,120]
[358264794,1744881032568,-44.60128189,0.00135637,120]
[358264796,1744881032581,-189.78796711,0.0013833,120]
[358264798,1744881032591,-150.1,0.00139027,120]
[358264800,1744881032601,-224.74,0.00139659,120]
[358264802,1744881032609,-150.0,0.00139726,120]
[358264804,1744881032619,-166.04038813,0.00139726,120]
[358264806,1744881032628,-151.0,0.00139726,120]
[358264808,1744881032639,-248.33051974,0.00139726,120]
[358264810,1744881032649,-500.0,0.00139726,120]
[358264812,1744881032659,-837.30371614,0.00139726,120]
[358264814,1744881032668,-200.0,0.00139726,120]
[358264816,1744881032677,-214.8,0.00139726,120]
[358264817,1744881032687,-150.0,0.00139726,120]
[358264819,1744881032696,-150.0,0.00139726,120]
[358264821,1744881032705,-200.0,0.00139726,120]
[358264823,1744881032714,-150.0,0.00139726,120]
[358264824,1744881032725,-151.0,0.00139726,120]
[358264825,1744881032735,-151.0,0.00139726,120]
[358264826,1744881032745,-197.5009,0.00139726,120]
[358264827,1744881032754,-151.558609,0.00139726,120]
[358264828,1744881032763,-151.0,0.00139726,120]
[358264829,1744881032772,-151.0,0.00139726,120]
[358264830,1744881032781,-151.0,0.00139726,120]
[358264831,1744881032790,-151.0,0.00139726,120]
[358264832,1744881032800,-151.0,0.00139726,120]
[358264833,1744881032809,-151.0,0.00139726,120]
[358264834,1744881032818,-292.467333,0.00139726,120]
[358264835,1744881032827,-292.467333,0.00139726,120]
[358264836,1744881032836,-292.467333,0.00139726,120]
[358264837,1744881032845,-292.467333,0.00139726,120]
[358264838,1744881032854,-292.467333,0.00139726,120]
[358264839,1744881032867,-292.467333,0.00139726,120]
[358264840,1744881032876,-292.467333,0.00139726,120]
[358264841,1744881032886,-292.467333,0.00139726,120]
[358264842,1744881032895,-292.467333,0.00139726,120]
[358264843,1744881032905,-292.467333,0.00139726,120]
[358264844,1744881032916,-292.467333,0.00139726,120]
[358264845,1744881032926,-292.467333,0.00139726,120]
[358264846,1744881032935,-292.467333,0.00139726,120]
[358264847,1744881032945,-292.467333,0.00139726,120]
[358264848,1744881032954,-292.467333,0.00139726,120]
[358264849,1744881032963,-292.467333,0.00139726,120]
[358264850,1744881032973,-292.467333,0.00139726,120]
[358264851,1744881032983,-292.467333,0.00139726,120]
[358264852,1744881032993,-292.467333,0.00139726,120]
[358264853,1744881033004,-151.0,0.00139726,120]
[358264854,1744881033013,-151.0,0.00139726,120]
[358264855,1744881033023,-151.0,0.00139726,120]
[358264856,1744881033032,-151.0,0.00139726,120]
[358264857,1744881033042,-151.0,0.00139726,120]
[358264858,1744881033052,-151.0,0.00139726,120]
[358264859,1744881033061,-151.0,0.00139726,120]
[358264860,1744881033070,-151.0,0.00139726,120]
[358264861,1744881033080,-151.0,0.00139726,120]
[358264862,1744881033089,-151.0,0.00139726,120]
[358264863,1744881033099,-151.0,0.00139726,120]
[358264864,1744881033108,-151.0,0.00139726,120]
[358264865,1744881033118,-151.0,0.00139726,120]
[358264866,1744881033127,-151.0,0.00139726,120]
[358264867,1744881033136,-258.674344,0.00139726,120]
[358264868,1744881033146,-517.17969808,0.00140298,120]
[358264869,1744881033156,-500.0,0.00141516,120]
[358264870,1744881033167,-500.0,0.00145512,120]
[358264871,1744881033178,-500.0,0.00151335,120]
[358264872,1744881033188,-200.0,0.00153807,120]
[358264873,1744881033198,-150.0,0.00160979,2]
[358264874,1744881033208,-1638.29,0.00161542,30]
[358264875,1744881033218,-150.0,0.00166356,2]
[358264876,1744881033227,-500.0,0.00167386,120]
[358264877,1744881033237,-152.0,0.00167603,120]
[358264878,1744881033246,-168.058,0.00167603,120]
[358264879,1744881033255,-500.0,0.00168959,120]
[358264880,1744881033265,-167.889,0.00170158,120]
[358264881,1744881033274,-907.0,0.00170158,120]
[358264882,1744881033283,-409.861,0.00170158,120]
[358264883,1744881033292,-575.0,0.00170158,120]
[358264884,1744881033302,-152.0,0.00170603,120]
[358264885,1744881033311,-150.0,0.00171732,2]
[358264886,1744881033320,-167.6,0.00171818,120]
[358264887,1744881033329,-500.0,0.00176295,120]
[358264888,1744881033339,-1000.0,0.00176471,120]
[358264889,1744881033348,-150.0,0.00177109,2]
[358264890,1744881033357,-165.31,0.00178747,30]
[358264891,1744881033367,-150.0,0.00182486,2]
[358264892,1744881033376,-7449.2488,0.001857,120]
[358264893,1744881033385,-698.61,0.001858,2]
[358264894,1744881033394,-224.74,0.00186212,120]
[358264895,1744881033404,-150.0,0.00187863,2]
[358264896,1744881033415,-167.6,0.00188935,120]
[358264897,1744881033424,-150.0,0.00193239,2]
[358264898,1744881033434,-1000.0,0.00198529,120]
[358264899,1744881033444,-150.0,0.00198616,2]
[358264900,1744881033453,-500.0,0.00200825,120]
[358264901,1744881033463,-200.0,0.00201322,120]
[358264902,1744881033472,-500.0,0.00202467,120]
[358264903,1744881033482,-150.0,0.00203993,2]
[358264904,1744881033491,-500.0,0.00204806,120]
[358264905,1744881033502,-167.6,0.00206051,120]
[358264906,1744881033512,-300.0,0.00209045,120]
[358264907,1744881033521,-500.0,0.00209255,120]
[358264908,1744881033531,-500.0,0.00210846,120]